Cogmind - Beta 14 @@@ ROGUE MODE // 2024.08.12 @ 09:52:29 Player: f3-rnm Result: Self-destructed Performance ------------- Evolutions (0) 0 Regions Visited (4) 800 Robots Destroyed (26) 130 Value Destroyed (621) 621 Prototype IDs (6) 120 Alien Tech Used (0) 0 Bonus (300) 300 TOTAL SCORE: 1971 Bonus ------- Registered with UFD 300 Cogmind --------- Core Integrity 48/250 Matter 300/300 Energy 100/100 System Corruption 0% Temperature Cool (0) Movement Rolling (175) Ox5 Location -8/Scraptown Parts ------- > --- POWER (1) -------- (None) > --- PROPULSION (2) --- Compact Wheel Subdweller Monowheel > --- UTILITY (2) ------ Disposable Heat Sink Huge Storage Unit > --- WEAPON (2) ------- (None) > --- INVENTORY (25) --- Titanium Leg Subdweller Monowheel Advanced Targeting Computer Improved Power Shielding Improved Propulsion Shielding Shock Rifle Assault Rifle Subdweller Machine Gun Grenade Launcher Peak State ------------ > --- POWER ------------ Subdweller Power Source > --- PROPULSION ------- Compact Wheel Subdweller Monowheel > --- UTILITY ---------- Disposable Heat Sink Huge Storage Unit > --- WEAPON ----------- Subdweller Machine Gun Grenade Launcher > --- INVENTORY -------- Titanium Leg Subdweller Monowheel Improved Power Shielding Shock Rifle Assault Rifle [Rating: 12] Favorites ----------- Power Ion Engine Engine Ion Engine Propulsion Light Treads Treads Light Treads Wheel Subdweller Monowheel Utility Disposable Heat Sink Device Disposable Heat Sink Storage Huge Storage Unit Protection Scrap Shield Weapon Light Cannon Ballistic Gun Subdweller Machine Gun Ballistic Cannon Light Cannon Launcher Grenade Launcher Build | -11 -10 -10 -8 -8 ------- Run | Yrd Mat Sub Rec Scr Slots Evolved . | . . . . . Power . | . . . . . Propulsion . | . . . . . Utility . | . . . . . Weapon . | . . . . . Parts Attached 26 | 6 2 17 1 . Power 3 | 1 . 2 . . Engine 3 | 1 . 2 . . Core . | . . . . . Reactor . | . . . . . Propulsion 5 | 2 . 3 . . Treads 3 | 2 . 1 . . Leg . | . . . . . Wheel 2 | . . 2 . . Hover . | . . . . . Flight . | . . . . . Utility 7 | 1 1 4 1 . Device 3 | . . 3 . . Storage 3 | 1 1 . 1 . Processor . | . . . . . Hackware . | . . . . . Protection 1 | . . 1 . . Artifact . | . . . . . Weapon 11 | 2 1 8 . . Energy Gun . | . . . . . Energy Cannon . | . . . . . Ballistic Gun 6 | 2 . 4 . . Ballistic Cannon 2 | . . 2 . . Launcher 3 | . 1 2 . . Special Weapon . | . . . . . Impact Weapon . | . . . . . Slashing Weapon . | . . . . . Piercing Weapon . | . . . . . Special Melee Weapon . | . . . . . Unidentified Prototypes . | . . . . . Parts Lost 10 | . . 9 1 . Power 2 | . . 1 1 . Propulsion 3 | . . 3 . . Utility 2 | . . 2 . . Weapon 3 | . . 3 . . Highest Loss Streak 4 | . . 4 1 . To Critical Strikes . | . . . . . Average Slot Usage (%) 72 | . 85 83 92 57 Engine 7 | . 14 13 11 . Treads 11 | . 28 22 . . Wheel 16 | . . 4 28 28 Device 8 | . . 3 14 14 Storage 9 | . 14 3 13 14 Protection 2 | . . 6 . . Ballistic Gun 8 | . 27 14 12 . Ballistic Cannon 4 | . . 12 . . Launcher 1 | . . 1 11 . Peak Build Rating 12 | 6 7 10 12 8 Average Rating 8 | 4 6 8 11 8 On Entrance 6 | . 6 6 10 8 Naked Turns . | . . . . . Heaviest Build 93 | 13 23 30 93 81 Greatest Support 40 | 40 40 40 36 16 Greatest Overweight (x) 5 | . . . 5 5 Average Overweight (x) 2 | . . . 4 5 Largest Inventory Capacity 25 | 8 10 10 25 25 Average Capacity 15 | 6 8 6 24 25 Most Carried 10 | 3 9 10 9 9 Average Carried 7 | 1 6 5 6 9 Final Capacity 25 | 8 10 5 25 25 Final Carried 9 | 3 9 2 9 9 Class Distribution -------------------- 48% | Commander-Mutant 46% | Mutant 4% | Scavenger-Mutant Dominant Class ---------------- Mutant | -10/Materials Mutant | -10/Subcaves Commander-Mutant | -8/Recycling Commander-Mutant | -8/Scraptown Resources | -11 -10 -10 -8 -8 ----------- Run | Yrd Mat Sub Rec Scr Matter Collected 998 | 151 99 531 . 217 Remotely . | . . . . . Salvage Created 566 | . 233 333 . . Parts 40 | . 22 18 . . Haulers Intercepted 1 | . 1 . . . Recyclers Shooed . | . . . . . Parts Field Recycled . | . . . . . Retrieved Matter . | . . . . . Parts Self-Destructed 16 | . . 16 . . Prevented . | . . . . . Kills | -11 -10 -10 -8 -8 ------- Run | Yrd Mat Sub Rec Scr Combat Hostiles Destroyed 20 | . 5 15 . . Guns 12 | . 5 7 . . Cannons 8 | . . 8 . . Classes Destroyed 8 | . 6 2 . . Builder 1 | . 1 . . . Tunneler 1 | . 1 . . . Hauler 1 | . 1 . . . Turret 2 | . . 2 . . Watcher 1 | . 1 . . . Swarmer 9 | . 3 6 . . Grunt 2 | . 2 . . . Subdweller 9 | . . 9 . . Best Kill Streak 3 | . 3 3 . . Combat Bots Only 3 | . 3 3 . . Max Kills in Single Turn 2 | . 2 2 . . Gunslinging . | . . . . . Exploded . | . . . . . Melee . | . . . . . Uniques/NPCs Destroyed . | . . . . . Combat | -11 -10 -10 -8 -8 -------- Run | Yrd Mat Sub Rec Scr Hostile Shots Fired 163 | . 20 143 . . Missed 45 | . 6 39 . . Damage Taken 1579 | . 161 1407 11 . Core 202 | . 19 183 . . Absorbed by Shields . | . . . . . Core Remaining (%) 100 | 100 . . . . Volleys Fired 108 | . 20 88 . . Largest 2 | . 2 2 . . Hottest 69 | . 40 69 . . Shots Fired 183 | . 39 144 . . Gun 115 | . 38 77 . . Cannon 52 | . . 52 . . Launcher 16 | . 1 15 . . Special . | . . . . . Kinetic 167 | . 38 129 . . Thermal . | . . . . . Explosive 16 | . 1 15 . . Electromagnetic . | . . . . . Robot Hit Streak 10 | . 7 10 . . Robot Miss Streak 3 | . 2 3 . . Penetration Max . | . . . . . Secondary Targets 1 | . 1 . . . Max Gunslinging Chain 1 | . 1 . . . Shots Hit Robots 79 | . 22 57 . . Core Hits 49 | . 14 35 . . Critical Kills . | . . . . . Critical Parts Destroyed . | . . . . . Critical Strikes 1 | . . 1 . . Blast 1 | . . 1 . . Melee Attacks . | . . . . . Impact . | . . . . . Slashing . | . . . . . Piercing . | . . . . . Sneak Attacks . | . . . . . Combat Hostiles . | . . . . . Follow-up Attacks . | . . . . . Damage Inflicted 1564 | . 309 1233 22 . Guns 751 | . 229 522 . . Cannons 530 | . . 530 . . Explosions 261 | . 80 181 . . Melee . | . . . . . Ramming 22 | . . . 22 . Kinetic 1281 | . 229 1052 . . Thermal . | . . . . . Explosive 261 | . 80 181 . . Electromagnetic . | . . . . . Impact . | . . . . . Slashing . | . . . . . Piercing . | . . . . . Highest Corruption 3 | . . . 3 . Average Corruption 3 | . . . 3 . Corruption Purged . | . . . . . Corruption Blocked . | . . . . . Effects 1 | . . . 1 . Heat Flow Errors 1 | . . . 1 . Overload Shots . | . . . . . Overflow Damage . | . . . . . Projectiles . | . . . . . Explosions . | . . . . . Melee . | . . . . . Knockbacks 10 | . . 10 . . Impact . | . . . . . Kinetic 9 | . . 9 . . Secondary 1 | . . 1 . . Self-Inflicted Damage 40 | . . 29 11 . Shots 1 | . . 1 . . Rammed 1 | . . . 1 . Targets Rammed 1 | . . . 1 . Kicked . | . . . . . Crushed . | . . . . . Highest Temperature 154 | . 18 . 154 . Average Temperature 35 | . 10 . 79 . Received Heat Transfer 339 | . 63 276 . . Siege Activations . | . . . . . Robots Corrupted . | . . . . . Combat Hostiles . | . . . . . Parts Fried . | . . . . . Impact Corruptions . | . . . . . Robots Melted . | . . . . . Combat Hostiles . | . . . . . Parts Melted 2 | . . 2 . . Heat Transferred . | . . . . . Parts Sabotaged . | . . . . . Parts Stolen . | . . . . . Parts Stripped . | . . . . . Power Chain Reactions . | . . . . . Alert | -11 -10 -10 -8 -8 ------- Run | Yrd Mat Sub Rec Scr Peak Influence 179 | . 179 . 170 . Initial 170 | . . . 170 . Average 98 | . 60 . 168 . Maximum Alert Level . | . . . . . Low Security (%) 100 | 100 100 . 100 . Level 1 . | . . . . . Level 2 . | . . . . . Level 3 . | . . . . . Level 4 . | . . . . . Level 5 . | . . . . . High Security . | . . . . . Max Security . | . . . . . Squads Dispatched 1 | . 1 . . . Investigation . | . . . . . Extermination . | . . . . . Reinforcement 1 | . 1 . . . Assault . | . . . . . Garrison . | . . . . . Intercept . | . . . . . Searches Triggered . | . . . . . Construction Impeded . | . . . . . Haulers Reinforced . | . . . . . Active Scanning Responses . | . . . . . Cargo Convoy Interrupts . | . . . . . Stealth | -11 -10 -10 -8 -8 --------- Run | Yrd Mat Sub Rec Scr Distress Signals . | . . . . . Communications Jammed . | . . . . . Distress Signals . | . . . . . Times Spotted 36 | . 11 25 . . Peak Tracking Total 6 | . 4 6 . . Tactical Retreats 6 | . 1 5 . . Traps | -11 -10 -10 -8 -8 ------- Run | Yrd Mat Sub Rec Scr Traps Triggered 2 | . . 2 . . Indirectly . | . . . . . Trap Hack Attempts . | . . . . . Triggered . | . . . . . Disarmed . | . . . . . Reprogrammed . | . . . . . Reused . | . . . . . Traps Extracted . | . . . . . Installed 1 | . . . . 1 Triggered . | . . . . . Machines | -11 -10 -10 -8 -8 ---------- Run | Yrd Mat Sub Rec Scr Machines Disabled 3 | . . 3 . . Max in Single Turn 2 | . . 2 . . Machines Repaired . | . . . . . Machines Dismantled . | . . . . . Machines Sabotaged . | . . . . . Overloaded Fab Kills . | . . . . . Hacking | -11 -10 -10 -8 -8 --------- Run | Yrd Mat Sub Rec Scr Machines Accessed 2 | . . 1 . 1 Terminals . | . . . . . Fabricators . | . . . . . Repair Stations . | . . . . . Recycling Units . | . . . . . Scanalyzers . | . . . . . Garrison Access . | . . . . . Total Hacks 5 | . . 4 . 1 Successful 5 | . . 4 . 1 Failed . | . . . . . Catastrophic . | . . . . . Database Lockouts . | . . . . . Manual . | . . . . . Terminals . | . . . . . Fabricators . | . . . . . Repair Stations . | . . . . . Recycling Units . | . . . . . Scanalyzers . | . . . . . Garrison Access . | . . . . . Terminal Hacks 5 | . . 4 . 1 Record 4 | . . 4 . . Derelict Proto ID Bank 1 | . . . . 1 Fabricator Hacks . | . . . . . Repair Station Hacks . | . . . . . Recycling Unit Hacks . | . . . . . Scanalyzer . | . . . . . Garrison Access Hacks . | . . . . . Unauthorized Hacks . | . . . . . Terminals . | . . . . . Fabricators . | . . . . . Repair Stations . | . . . . . Recycling Units . | . . . . . Scanalyzers . | . . . . . Garrison Access . | . . . . . Data Cores Recovered . | . . . . . Used . | . . . . . Hacking Detections . | . . . . . Full Trace Events . | . . . . . Feedback Events . | . . . . . Feedback Blocked . | . . . . . Robot Schematics Acquired . | . . . . . Robots Built . | . . . . . Authchips . | . . . . . Time . | . . . . . Total Robot Build Rating . | . . . . . Part Schematics Acquired . | . . . . . Parts Built . | . . . . . Authchips . | . . . . . Time . | . . . . . Total Part Build Rating . | . . . . . Parts Repaired . | . . . . . Time . | . . . . . Parts Recycled . | . . . . . Recycled Matter . | . . . . . Retrieved Matter . | . . . . . Retrieved Components . | . . . . . Parts Scanalyzed . | . . . . . Part Schematics Acquired . | . . . . . Parts Damaged . | . . . . . Bothacking | -11 -10 -10 -8 -8 ------------ Run | Yrd Mat Sub Rec Scr Used RIF Installer . | . . . . . Robots Hacked . | . . . . . Non-combat . | . . . . . Combat . | . . . . . Robot Hacks Applied . | . . . . . Relay Couplers Released . | . . . . . Fabnet Peak Effective % . | . . . . . Robots Rewired 5 | . . . 5 . Allies Hacked . | . . . . . Hacks Repelled . | . . . . . Allies | -11 -10 -10 -8 -8 -------- Run | Yrd Mat Sub Rec Scr Total Allies 5 | . . . 5 . Largest Group 5 | . . . 5 5 Highest-Rated Group 57 | . . . 57 57 Highest-Rated Ally 16 | . . . 16 16 Total Orders 1 | . . . . 1 STAY 1 | . . . . 1 Ally Attacks . | . . . . . Total Damage . | . . . . . Kills . | . . . . . Allies Corrupted . | . . . . . Allies Melted . | . . . . . Intel | -11 -10 -10 -8 -8 ------- Run | Yrd Mat Sub Rec Scr Robot Analysis Total . | . . . . . Derelict Logs Recovered 4 | . . 2 . 2 Drone Launches . | . . . . . Drone Recoveries . | . . . . . Exploration | -11 -10 -10 -8 -8 ------------- Run | Yrd Mat Sub Rec Scr Turns Passed 5608 | 98 466 2226 398 2420 Spaces Moved 3216 | 56 242 1330 213 1375 Core 2 | 2 . . . . Treads 1253 | 54 242 957 . . Legs . | . . . . . Wheels 1961 | . . 373 213 1375 Hover . | . . . . . Flight . | . . . . . Fastest Speed 50 | 50 160 105 105 175 Average Speed 160 | 156 160 145 164 175 Slowest Speed 175 | 160 160 160 175 175 Overloaded Moves . | . . . . . Propulsion Burnouts . | . . . . . Robots Hopped . | . . . . . Cave-ins Triggered . | . . . . . Exploration Rate (%) 39 | 5 40 60 38 55 Regions Visited 4 Branch Regions 3 Pre-discovered Areas 1 | . . 1 . . Known Exits Taken 1 | . . 1 . . Unknown Exits Taken 3 | 1 1 . 1 . Scrap Searched 5 | . . 2 . 3 Spaces Dug 19 | . . 19 . . Terrain Destroyed 65 | . 3 62 . . Melee . | . . . . . Projectile . | . . . . . AOE 65 | . 3 62 . . Terrain Rammed . | . . . . . Walls Destroyed . | . . . . . Machines Disabled . | . . . . . Actions | -11 -10 -10 -8 -8 --------- Run | Yrd Mat Sub Rec Scr Total 3479 | 64 285 1481 261 1388 Wait 67 | . 15 34 11 7 Move 3212 | 55 241 1329 212 1375 Hop . | . . . . . Pick Up 20 | 3 6 6 5 . Fast Attach 12 | 6 1 4 1 . Attach 8 | . . 8 . . Detach 2 | . . . 2 . Swap 6 | . 1 5 . . Drop 6 | . 1 5 . . Fire 108 | . 20 88 . . Melee . | . . . . . Ram 1 | . . . 1 . Kick . | . . . . . Crush . | . . . . . Escape Stasis . | . . . . . Rewire 34 | . . . 29 5 Trap 1 | . . . . 1 Miscellaneous 2 | . . 2 . . Route ------- -11/Scrapyard -10/Materials (discovered 2 exits: [*Mat] / *Sub) -10/Subcaves (discovered 3 exits: [*Mat x2] / *Rec) -8/Recycling (discovered 2 exits: [*Fac] / *Scr) -8/Scraptown History --------- Turn | Location | Event 2 | -11/Scrapyard | Met Revision 17 7 | -11/Scrapyard | Discovered new exit (range 15) 99 | -11/Scrapyard | Entered Materials 302 | -10/Materials | Discovered new exit (range 10) 309 | -10/Materials | Build established: Mutant 553 | -10/Materials | Discovered new exit (range 8) 565 | -10/Materials | Entered Subcaves 573 | -10/Subcaves | Identified exit to Recycling 588 | -10/Subcaves | Learned Materials garrison access intel 650 | -10/Subcaves | Shifting Twisted Machinery released Sub. Monowheel 651 | -10/Subcaves | Shifting Twisted Machinery released Mak. Flight Unit 653 | -10/Subcaves | Shifting Twisted Machinery released Sub. Laser 885 | -10/Subcaves | Discovered new exit (range 7) 910 | -10/Subcaves | Learned location of Zion (-7) 910 | -10/Subcaves | Met a Zionite searching for "candidates" 926 | -10/Subcaves | Visited Clippyterm 931 | -10/Subcaves | Learned Factory trap positions 931 | -10/Subcaves | Learned Research machine intel 1677 | -10/Subcaves | Discovered new exit (range 10) 1682 | -10/Subcaves | Shifting Twisted Machinery released Battle Cannon 1865 | -10/Subcaves | A swath of the cavern ceiling suddenly collapsed 1917 | -10/Subcaves | Shifting Twisted Machinery released Mak. Power Source 2445 | -10/Subcaves | Ambushed by Subdwellers from Twisted Machinery 2498 | -10/Subcaves | Core integrity fell below 50% 2560 | -10/Subcaves | Lost 4 parts (1p1n2w) 2734 | -10/Subcaves | Core integrity fell below 20% 2791 | -10/Subcaves | Entered Recycling 3077 | -8/Recycling | Discovered new exit (range 4) 3134 | -8/Recycling | Scanned before Scraplab entrance 3161 | -8/Recycling | Entered Scraplab 3175 | -8/Recycling | Discovered new exit (range 3) 3176 | -8/Recycling | Build established: Commander-Mutant 3189 | -8/Recycling | Entered Scraptown 3189 | -8/Scraptown | Accompanied by 5 allies 3189 | -8/Scraptown | System corruption cleaned by C-Scrubber 3329 | -8/Scraptown | Scanned Subdweller tech in exchange for log data 3335 | -8/Scraptown | Learned location of 1 exit from Upper Caves 3426 | -8/Scraptown | Visited UFD Registry 3426 | -8/Scraptown | Registered with UFD as "Gravwarp" 3507 | -8/Scraptown | Visited Scrapoid Research Area 3549 | -8/Scraptown | Visited Science Guys 3598 | -8/Scraptown | Visited Derelict Rescue Squad 3626 | -8/Scraptown | Visited DA-N13 Charitable Foundation 3649 | -8/Scraptown | Visited A0-MCA Data Center 3703 | -8/Scraptown | Visited Research Penetration Think Tank 3738 | -8/Scraptown | Visited Cartography Club 3836 | -8/Scraptown | Visited Modified Component R&D 4139 | -8/Scraptown | Visited Science Testing Area 4203 | -8/Scraptown | Found DCF Scrap (27 items) 4357 | -8/Scraptown | Visited Assassins FH 4394 | -8/Scraptown | Visited Shadow of the Wyrm 4406 | -8/Scraptown | Visited Comm Corps 4441 | -8/Scraptown | Visited TADAMA 4457 | -8/Scraptown | Visited IN-MT5's Study 4525 | -8/Scraptown | Visited SPCMW 4595 | -8/Scraptown | Visited Red Mages 5058 | -8/Scraptown | Warned about trapping Scraptown 5609 | -8/Scraptown | Self-destructed Last Messages --------------- believe them. Believe what? All that mumbo jumbo about first souls, gleaming universes, and voltaic tempests? 05135_ Searching scrap... 05135_ Found Med. Matter Pod. 05135_ Found Hacking Suite. 05135_ Found Assault Cannon. 05135_ Found Salvaging Laser. 05135_ Found 47 Matter. 05482_ 0E-NNF(p) scrutinizes some mainframe outputs. 05532_ Attempting to rewire 08S01-D. 05532_ 08S01-D is broken beyond repair. 05533_ Attempting to rewire 08S01-D. 05533_ 08S01-D is broken beyond repair. 05534_ Attempting to rewire 08S01-D. 05534_ 08S01-D is broken beyond repair. 05535_ Attempting to rewire 08S01-D. 05535_ 08S01-D is broken beyond repair. 05536_ Attempting to rewire 08S01-D. 05536_ 08S01-D is broken beyond repair. Map ----- +----------------------------------------------------+ | "#??""!"""""??? | | "#??""""""""??? | | "#? """??? | | "## """??? | | " """??? | | """""""""""""""""""""""""""" "## """"""""??? | | """""""""""""""""""""""""""" "#? """"""????? | | ""###### ################"" "#??"""""?????? | | ""#??? ?????????????#"" "#########????? | | ""#?? ????????????#"" "##!!/*==#????? | | ""#? "" "" ????????????#"" "##=/] ==#????? | | ""# "" ""??????????###"" "##=!//!*#????? | | ""# " ?????######## #"" "##**/[###????? | | "" "" ??? ![**###????? | | "" "" ?? "## ! ] #????? | | ""# " ??????###### #"" "## ]%] #????? | | ""# "" "" ?????????###"" "## #????? | | ""#? "" "" ???????????#"" "#########????? | | ""#?? ????????????#"" "#????????????? | | ""#??? ?????????????#"" "#??######????? | | ""###### ################"" "#? """"""??? | | """""""""""""""""""""""""""" "## " " " "# | | """""""""""""""""""""""""""" &"# | | "## &"# | | "#? "# | | @ "#?? ""# | | ##? " " " "# | | E#?? """"""""# | | "" """"""""""" """"""""""" """""" ##??#######??? | | ## ########### ########### ###### #????????????? | | """""???# #?#" # #????????????? | | ?#" #?# "# #????????????? | | " #" " #?#"" "" "^# #????????????? | | " " " #"" """#?#"" "" " # #????????????? | | " "?# """#?#"" c # #????????????? | | ? " "?# " """#?#"""" ""# ############?? | | ?" " ?#""" " #?#""" """"# #?? | | ?" "?"""#""" #?#" "|""# ##?? | | ??#?????#""" #?#""" """"# #?? | | ????????# " " " #?#""""" X """# #?? | | ????????# """""#?#"""""""""""# #?? | | ????????###########?############# ############?? | | ????????????????????????######### #####????????? | | ????????????????????"??#"""##"|"# """"#????????? | | ????????????##" "##"""##"" ##" # "" "#????????? | | ???????????? "#????????? | | ???????????? ] " "#????????? | | ???????????? [!! """"#????????? | | ???????????????" ##" "##!!%##"" ## ######????????? | | ???????????????????????#"""##"""####?????????????? | +----------------------------------------------------+ Best States ------------- Heat Dissipation 25 Coolant Potential 50 Energy Generation 15 Energy Capacity 250 Matter Stores 300 Matter Capacity 300 Sight Range 21 Terrain Scan Density 10 Armor Coverage 800 Evasion (%) 40 Recoil Reduction 2 Item Schematics ----------------- None Robot Schematics ------------------ None Fabricated ------------ Nothing Alien Tech Used ----------------- None Achievements -------------- None Challenges ------------ None Game ------ Seed PowerDeliveryPick Manual? 0 Play Time 00:20:22 Cumulative 227.3 hours Start 2024.08.12 @ 09:33:06 End 2024.08.12 @ 09:52:29 Sessions 1 Manual Loads 0 Difficulty Rogue Special Mode None Game No. 240 Rogue 204 Adventurer 36 Explorer 0 Win Type - Total 10 Types 3/0/7/0/0/0/0/0/0 Lore% 60 Gallery% 81 Achievement% 71 Wizard Run 0 Options --------- Layout 0 ASCII 0 Keyboard 0 Movement Mouse Keybinds 0 Fullscreen 1 Font 18/SmallcapsGlow Map View 76x50 Zoom Use 0% Tactical HUD 1 Map Filters NONE Filters NONE Steam 1 RUN: a8eb29a5-3746-44f0-b714-13fb24d484c2